fUST/lending_fUST_20251223
["ID","MTS","AMOUNT","RATE_DAILY","PERIOD"]
[399538134,1766461846158,-236.723042,0.00013699,2]
[399538135,1766461846168,-236.723042,0.00013699,2]
[399538136,1766461846177,-236.723042,0.00013699,2]
[399538137,1766461846186,-236.723042,0.00013699,2]
[399538138,1766461846195,-236.723042,0.00013699,2]
[399538139,1766461846204,-236.723042,0.00013699,2]
[399538140,1766461846214,-236.723042,0.00013699,2]
[399538141,1766461846224,-236.723042,0.00013699,2]
[399538142,1766461846233,-236.723045,0.00013699,2]
[399538143,1766461846242,-151.0,0.00013699,2]
[399538144,1766461846255,-151.0,0.00013699,2]
[399538145,1766461846264,-151.0,0.00013699,2]
[399538146,1766461846274,-151.0,0.00013699,2]
[399538147,1766461846283,-151.0,0.00013699,2]
[399538148,1766461846295,-151.0,0.00013699,2]
[399538149,1766461846305,-151.0,0.00013699,2]
[399538150,1766461846315,-151.0,0.00013699,2]
[399538151,1766461846324,-1640.376089,0.00013699,2]
[399538152,1766461846335,-1640.376089,0.00013699,2]
[399538153,1766461846345,-1640.376089,0.00013699,2]
[399538154,1766461846354,-1640.376089,0.00013699,2]
[399538155,1766461846363,-1640.376089,0.00013699,2]
[399538156,1766461846374,-1640.376089,0.00013699,2]
[399538157,1766461846383,-1640.376089,0.00013699,2]
[399538158,1766461846392,-1640.376089,0.00013699,2]
[399538159,1766461846402,-620.48371767,0.00013699,2]
[399538160,1766461846439,-585.5673309,0.00013699,2]
[399538161,1766461846450,-434.32504043,0.00013699,2]
[399538162,1766461846459,-169.67495957,0.00013699,2]
[399538171,1766461948710,5000.0,6e-05,2]
[399538175,1766463010570,3547.179077,6.892e-05,2]
[399538176,1766463010593,6452.820923,6.892e-05,2]
[399538199,1766463031577,-5000.0,8.962e-05,2]
[399538202,1766463031588,-171.43247363,9.076e-05,2]
[399538204,1766463031597,-150.0,9.423e-05,2]
[399538205,1766463031607,-151.8,9.872e-05,2]
[399538207,1766463031617,-300.0,0.00010318,2]
[399538209,1766463031627,-187.02651328,0.00010319,2]
[399538211,1766463031639,-597.83264165,0.00010319,2]
[399538214,1766463031648,-500.0,0.00010319,2]
[399538215,1766463031658,-552.54939686,0.00010319,2]
[399538218,1766463031667,-194.45808548,0.00010319,2]
[399538220,1766463031677,-195648.4336201,0.0001032,2]
[399538222,1766463031699,-972.72,0.0001032,2]
[399538225,1766463031709,-8754.12141734,0.0001032,2]
[399538296,1766463037669,-1143.75644152,0.0001032,2]
[399538303,1766463037722,-560397.36727748,0.0001032,2]
[399538305,1766463037734,-1651.24133704,0.0001032,2]
[399538307,1766463037745,-3921.72438981,0.0001032,2]
[399538309,1766463037756,-3664.0724537,0.0001032,2]
[399538311,1766463037766,-5155.25809177,0.0001032,2]
[399538369,1766463039988,-150.0,9.542e-05,2]
[399538371,1766463039998,-150.0,9.997e-05,2]
[399538373,1766463040007,-34418.37656197,0.0001032,2]
[399538375,1766463040016,-216.17,0.00010451,2]
[399538377,1766463040026,-600.0,0.00010628,2]
[399538378,1766463040035,-936.54201318,0.0001079,2]
[399538563,1766463045953,-288.23,0.00010905,2]
[399538564,1766463045963,-999.0,0.00010959,2]
[399538565,1766463045972,-500.0,0.00010959,2]
[399538566,1766463045981,-522.95616897,0.00010959,2]
[399538567,1766463045991,-202.29031889,0.00011076,2]
[399538568,1766463046000,-420.0,0.00011346,2]
[399538569,1766463046009,-360.28,0.0001136,2]
[399538570,1766463046018,-633.0,0.0001143,2]
[399538571,1766463046027,-1363.0,0.0001143,2]
[399538572,1766463046036,-156.4758998,0.00011675,2]
[399538573,1766463046045,-432.34,0.00011814,2]
[399538574,1766463046055,-504.4,0.00012269,2]
[399538575,1766463046063,-587.0,0.00012477,2]
[399538576,1766463046073,-576.45,0.00012723,2]
[399538577,1766463046082,-233.14816414,0.00013076,2]
[399538578,1766463046092,-648.51,0.00013177,2]
[399538579,1766463046101,-272.24653832,0.00013425,2]
[399538580,1766463046110,-4947.11812909,0.0001354,2]
[399538583,1766463973623,9800.0,0.000154,120]
[399538617,1766464232154,-462.7826373,8.953e-05,2]
[399538618,1766464232164,-207.20831449,8.953e-05,2]
[399538619,1766464232174,-159.2950545,8.953e-05,2]
[399538620,1766464232183,-545.0,8.953e-05,2]
[399538621,1766464232192,-150.0,9.251e-05,2]
[399538622,1766464232201,-150.0,9.691e-05,2]
[399538623,1766464232211,-150.0,0.00010132,2]
[399538624,1766464232220,-150.0,0.00010572,2]
[399538625,1766464232229,-187.96816431,0.00010953,2]
[399538626,1766464232238,-150.0,0.00011013,2]
[399538627,1766464232248,-300.0,0.00011081,2]
[399538628,1766464232257,-10021.8547128,0.00011082,2]
[399538629,1766464232266,-298.1542981,0.00011242,2]
[399538630,1766464232276,-178.32,0.00011453,2]
[399538631,1766464232285,-416.0,0.00011843,2]
[399538632,1766464232295,-208.05,0.00011894,2]
[399538633,1766464232304,-393.0,0.00012175,2]
[399538634,1766464232313,-1041.66666667,0.0001226,2]
[399538635,1766464232324,-237.77,0.00012334,2]
[399538636,1766464232333,-267.49,0.00012775,2]
[399538637,1766464232342,-216.64127412,0.00012953,2]
[399538638,1766464232351,-297.21,0.00013216,2]
[399538639,1766464232361,-1106.25310689,0.0001344,2]
[399538640,1766464232373,-1027.6,0.0001344,2]
[399538641,1766464232392,-975.72973871,0.0001344,2]
[399538642,1766464232522,-289.33063211,0.0001344,2]
[399538643,1766464232531,-201.2485228,0.00013497,2]
[399538644,1766464232540,-418.48284915,0.00013497,2]
[399538645,1766464232550,-76113.82923662,0.00013498,2]
[399538646,1766464232896,-488.93656277,0.00013498,2]
[399538647,1766464232907,-929.26250814,0.00013498,2]
[399539380,1766465432639,-373.25299155,8.299e-05,2]
[399539381,1766465432665,-648.82145512,8.299e-05,2]
[399539401,1766465438042,-2961.17167265,8.299e-05,2]
[399539402,1766465438052,-536.0,8.299e-05,2]
[399539404,1766465438061,-227.55813555,8.383e-05,2]
[399539405,1766465438071,-207.20831449,8.853e-05,2]
[399539406,1766465438080,-150.0,8.853e-05,2]
[399539407,1766465438089,-177.0,0.00010853,2]
[399539408,1766465438099,-150.0,0.00011554,2]
[399539409,1766465438108,-500.0,0.00011575,2]
[399539410,1766465438118,-314.05074742,0.00011575,2]
[399539411,1766465438127,-471.29670002,0.00011575,2]
[399539413,1766465438318,-11.95652699,0.00011575,2]
[399539414,1766465438328,-300.6884332,0.00011576,2]
[399539415,1766465438337,-227.07903981,0.00011576,2]
[399539416,1766465438386,-5004.89252433,0.00011576,2]
[399539417,1766465438398,-15462.71,0.00011576,2]
[399539418,1766465438444,-2447.396,0.00011576,2]
[399540821,1766465793995,-150.0,0.00012,6]
[399540822,1766465795320,-150.0,0.00012,6]
[399540823,1766465796388,-150.0,0.00012,6]
[399540824,1766465798094,-150.0,0.00012,6]
[399540825,1766465800116,-150.0,0.00012,6]
[399540827,1766466155532,200.0,0.000154,120]
[399540828,1766466481233,-150.0,0.00016986,120]
[399540829,1766466482886,-150.0,0.00016986,120]
[399540830,1766466484759,-150.0,0.00016986,120]
[399540831,1766466486581,-150.0,0.00016986,120]
[399540832,1766466487962,-150.0,0.00016986,120]
[399540865,1766466638251,-190.05508671,8.383e-05,2]
[399540866,1766466638262,-348.30691329,8.383e-05,2]
[399540867,1766466638277,-189.69308671,8.383e-05,2]
[399540868,1766466638288,-166.13867476,8.485e-05,2]
[399540869,1766466638300,-150.0,9.562e-05,2]
[399540870,1766466638311,-150.0,0.00010017,2]
[399540871,1766466638322,-196.04363622,0.00010485,2]
[399540872,1766466638333,-150.0,0.0001053,2]
[399540873,1766466638344,-155.94,0.00010988,2]
[399540874,1766466638355,-1041.66666667,0.00011169,2]
[399540875,1766466638367,-194.92,0.00011446,2]
[399540876,1766466638377,-1157.81775086,0.00011571,2]
[399540877,1766466638399,-387.17921405,0.00011571,2]
[399540921,1766466640939,-8174.08492858,0.00011571,2]
[399540923,1766466640948,-1200.0,0.00011571,2]
[399540924,1766466640958,-1200.0,0.00011574,2]
[399540926,1766466640967,-222.33130672,0.00011575,2]
[399540928,1766466640976,-155.0,0.00011576,2]
[399540930,1766466640985,-361.53768394,0.00011696,2]
[399540932,1766466640994,-233.91,0.00011903,2]
[399540933,1766466641003,-300.0,0.00011998,2]
[399540935,1766466641012,-500.0,0.00011999,2]
[399540937,1766466641020,-500.0,0.00011999,2]
[399540938,1766466641029,-155.69476144,0.00011999,2]
[399540940,1766466641038,-500.0,0.00011999,2]
[399540942,1766466641047,-316.66594402,0.00011999,2]
[399540943,1766466641056,-617.5185128,0.00012,6]
[399541114,1766466643435,-24596.61724827,0.00012,6]
[399541116,1766466643505,-500.0,0.00012,6]
[399541423,1766466646528,-3536.55281034,0.00012,6]
[399541425,1766466646538,-180.00043382,0.00012003,2]
[399541427,1766466646547,-363.04281384,0.00012103,2]
[399541429,1766466646557,-416.0,0.00012261,2]
[399541431,1766466646566,-272.89,0.00012361,2]
[399541432,1766466646575,-225.94859768,0.00012485,2]
[399541434,1766466646584,-486.45481319,0.00012708,2]
[399541669,1766467832936,-150.0,9.484e-05,2]
[399541670,1766467832947,-157.97605659,9.511e-05,2]
[399541671,1766467832958,-150.0,9.927e-05,2]
[399541672,1766467832967,-76.66775065,0.00010378,2]
[399541673,1766467833026,-73.33224935,0.00010378,2]
[399541674,1766467833035,-150.0,0.00010829,2]
[399541675,1766467833044,-490.69314044,0.00011226,2]
[399541703,1766467838447,-479.50755848,0.00011226,2]
[399541706,1766467838466,-71.46596775,0.00011226,2]
[399541708,1766467838477,-150.0,0.0001128,2]
[399541710,1766467838487,-186.41174677,0.00011511,2]
[399541712,1766467838501,-190.43519688,0.00011616,2]
[399541713,1766467838510,-150.0,0.00011742,2]
[399541716,1766467838520,-156.39,0.00012193,2]
[399541717,1766467838529,-178.73,0.00012645,2]
[399541719,1766467838541,-416.0,0.00012673,2]
[399541722,1766467838551,-300.0,0.00012896,2]
[399541723,1766467838560,-300.0,0.00012896,2]
[399541752,1766467838819,-1200.0,0.00012896,2]
[399541756,1766467838843,-300.0,0.00012896,2]
[399541758,1766467838853,-500.0,0.00012896,2]
[399541760,1766467838867,-500.0,0.00012896,2]
[399541762,1766467838876,-500.0,0.00012896,2]
[399541764,1766467838886,-500.0,0.00012896,2]
[399541766,1766467838895,-470.72370889,0.00012896,2]
[399541767,1766467838904,-500.0,0.00012896,2]
[399541769,1766467838914,-250.0,0.00012896,2]
[399541772,1766467838923,-350.07617766,0.00012896,2]
[399541774,1766467838942,-149.92382234,0.00012896,2]
[399541776,1766467838951,-540.06848851,0.00012897,2]
[399541779,1766467838963,-659.93151149,0.00012897,2]
[399541781,1766467838972,-85.27039122,0.00012903,2]
[399541853,1766467840568,-274.73047642,0.00012903,2]
[399541854,1766467840578,-2974.04929304,0.00012903,2]
[399541855,1766467840587,-458.98633301,0.00012912,2]
[399541856,1766467840596,-421.66616081,0.00012912,2]
[399541857,1766467840606,-500.0,0.00012912,2]
[399541858,1766467840615,-161.21369531,0.00012912,2]
[399541859,1766467840624,-184.8788594,0.00012912,2]
[399541860,1766467840633,-4181.10847501,0.00012913,2]
[399541861,1766467840671,-400.42809868,0.00012913,2]
[399541862,1766467840681,-25849.42175035,0.00012913,2]
[399541863,1766467840692,-7338.35907695,0.00012913,2]
[399541872,1766467843440,-508.97207701,0.00012913,2]
[399541873,1766467843497,-19294.01464235,0.00012913,2]
[399541874,1766467843555,-58981.64128995,0.00012913,2]
[399541875,1766467843567,-1006.48258911,0.00012913,2]
[399541876,1766467843578,-5465.64002953,0.00012913,2]
[399541877,1766467843613,-11874.6777346,0.00012913,2]
[399541878,1766467843624,-466.68130662,0.00012913,2]
[399541890,1766467846518,-880.1,0.00012913,2]
[399541900,1766467846687,-879.9514622,0.00012913,2]
[399542004,1766469033237,-150.0,9.412e-05,2]
[399542006,1766469033246,-150.0,9.86e-05,2]
[399542008,1766469033256,-150.0,0.00010309,2]
[399542009,1766469033266,-178.28419462,0.00011384,2]
[399542010,1766469033275,-1041.66666667,0.00012251,2]
[399542011,1766469033284,-5000.0,0.000127,2]
[399542012,1766469033293,-645.16631257,0.00012712,2]
[399542013,1766469033302,-310.21192512,0.00012712,2]
[399542014,1766469033317,-11.07850799,0.00012712,2]
[399542015,1766469033326,-292.33639743,0.00012713,2]
[399542055,1766469038676,-94785.30333452,0.00012713,2]
[399542202,1766469677796,3763.0,0.000148,120]
[399542221,1766470231963,-366.6522351,0.00011969,2]
[399542222,1766470231973,-155.64768252,0.00012213,2]
[399542223,1766470231982,-1041.66666667,0.00012276,2]
[399542224,1766470231992,-300.0,0.00012604,2]
[399542225,1766470232001,-1200.0,0.00012604,2]
[399542226,1766470232011,-545.0,0.00012605,2]
[399542227,1766470232020,-451.6164188,0.00012605,2]
[399542228,1766470232029,-217.31195143,0.00012605,2]
[399542229,1766470232039,-224.90330317,0.00012605,2]
[399542230,1766470232048,-5203.2157197,0.00012606,2]
[399542231,1766470232278,-1035.55489872,0.00012606,2]
[399542232,1766470232350,-525.06757274,0.00012606,2]
[399542233,1766470232361,-356.90616913,0.00012606,2]
[399542234,1766470232371,-13998.35943124,0.00012606,2]
[399542282,1766470238266,-500.0,0.00012604,2]
[399542283,1766470238276,-500.0,0.00012604,2]
[399542284,1766470238286,-213.63916302,0.00012604,2]
[399542285,1766470238296,-126.37729198,0.00012604,2]
[399542286,1766470238308,-373.62270802,0.00012604,2]
[399542287,1766470238318,-264.11232149,0.00012604,2]
[399542288,1766470238328,-500.0,0.00012604,2]
[399542289,1766470238338,-330.67040708,0.00012604,2]
[399542290,1766470238350,-169.32959292,0.00012604,2]
[399542291,1766470238360,-500.0,0.00012604,2]
[399542292,1766470238370,-8.09689325,0.00012604,2]
[399542659,1766470243232,-491.90310675,0.00012604,2]
[399542660,1766470243241,-500.0,0.00012604,2]
[399542661,1766470243251,-500.0,0.00012604,2]
[399542662,1766470243260,-500.0,0.00012604,2]
[399542663,1766470243270,-500.0,0.00012604,2]
[399542664,1766470243280,-500.0,0.00012604,2]
[399542665,1766470243289,-500.0,0.00012604,2]
[399542666,1766470243300,-500.0,0.00012604,2]
[399542667,1766470243309,-500.0,0.00012604,2]
[399542668,1766470243319,-500.0,0.00012604,2]
[399542669,1766470243329,-500.0,0.00012604,2]
[399542670,1766470243338,-500.0,0.00012604,2]
[399542671,1766470243347,-285.44230956,0.00012604,2]
[399542672,1766470243357,-500.0,0.00012604,2]
[399542673,1766470243367,-500.0,0.00012604,2]
[399542674,1766470243377,-500.0,0.00012604,2]
[399542675,1766470243387,-500.0,0.00012604,2]
[399542676,1766470243397,-500.0,0.00012604,2]
[399542677,1766470243407,-7151.6227251,0.00012606,2]
[399542678,1766470243423,-311.0,0.00012606,2]
[399542679,1766470243434,-21688.79131837,0.00012606,2]
[399542682,1766470245906,-871.85190565,0.00012606,2]
[399542683,1766470246075,-765.71456297,0.00012606,2]
[399542693,1766470774190,-150.0,0.000161,50]
[399542694,1766470779758,-150.0,0.000161,50]
[399542695,1766470782854,-150.0,0.000161,50]
[399542696,1766470784941,-150.0,0.000161,50]
[399542700,1766471423546,-150.0,0.000161,50]
[399542701,1766471426327,-150.0,0.000161,50]
[399542744,1766471431921,-373.25299155,0.00011905,2]
[399542745,1766471431930,-152.53472887,0.00012025,2]
[399542746,1766471431939,-256.11779252,0.00012066,2]
[399542747,1766471431950,-300.0,0.00012127,2]
[399542748,1766471431959,-500.0,0.00012128,2]
[399542749,1766471431968,-418.23470239,0.00012128,2]
[399542750,1766471431977,-420.60470106,0.00012128,2]
[399542752,1766471431986,-152.118366,0.00012128,2]
[399542754,1766471431998,-316.13149316,0.00012128,2]
[399542756,1766471432012,-157.43231222,0.00012128,2]
[399542758,1766471432020,-9142.56377049,0.00012129,2]
[399542760,1766471432032,-825.0,0.00012129,2]
[399542761,1766471432043,-420.90262231,0.00012129,2]
[399542762,1766471432087,-1779.00510183,0.00012129,2]
[399542804,1766471438148,-1888.3931287,0.00012129,2]
[399542805,1766471438160,-960.88302587,0.00012129,2]
[399542806,1766471438171,-529.46489486,0.00012129,2]
[399542807,1766471438182,-2307.74992502,0.00012129,2]
[399542808,1766471438194,-4295.9564416,0.00012129,2]
[399542809,1766471438206,-5848.75866296,0.00012129,2]
[399542810,1766471438218,-15995.4523268,0.00012129,2]
[399542811,1766471438231,-3527.23581549,0.00012129,2]
[399543079,1766471443536,-500.0,0.00012129,2]
[399543136,1766471446143,-604.017359,0.00012129,2]
[399543137,1766471446155,-699.44,0.00012129,2]
[399543161,1766472032890,-150.0,9.018e-05,2]
[399543162,1766472032910,-216.57,0.0001,2]
[399543163,1766472032930,-307.21170682,0.00011763,2]
[399543164,1766472032951,-5000.0,0.00011882,2]
[399543165,1766472032971,-1041.66666667,0.00012002,2]
[399543166,1766472032991,-589.0,0.00012002,2]
[399543167,1766472033011,-817.83989905,0.00012071,2]
[399543168,1766472033032,-150.0,0.00012071,2]
[399543169,1766472033053,-300.0,0.00012128,2]
[399543170,1766472033075,-186.01926681,0.00012128,2]
[399543171,1766472033098,-500.0,0.00012128,2]
[399543172,1766472033120,-500.0,0.00012128,2]
[399543173,1766472033141,-483.40211126,0.00012128,2]
[399543174,1766472033163,-500.0,0.00012128,2]
[399543175,1766472033186,-459.90240414,0.00012128,2]
[399543176,1766472033208,-500.0,0.00012128,2]
[399543177,1766472033235,-352061.38794525,0.00012129,2]
[399543212,1766472632152,-1435.27231834,8.84e-05,2]
[399543233,1766472638256,-544.0,8.84e-05,2]
[399543234,1766472638265,-157.12511697,8.885e-05,2]
[399543235,1766472638275,-150.0,8.929e-05,2]
[399543236,1766472638284,-265.84,9.354e-05,2]
[399543237,1766472638293,-79.99538693,9.779e-05,2]
[399543238,1766472638305,-318.76461307,9.779e-05,2]
[399543239,1766472638315,-180.51,0.0001,2]
[399543240,1766472638324,-180.51,0.000102,2]
[399543241,1766472638334,-531.68,0.00010204,2]
[399543242,1766472638350,-180.51,0.000104,2]
[399543243,1766472638363,-180.51,0.000106,2]
[399543244,1766472638374,-1200.0,0.00010627,2]
[399543245,1766472638384,-300.0,0.00010628,2]
[399543246,1766472638394,-300.0,0.00010628,2]
[399543247,1766472638404,-164.82245681,0.00010628,2]
[399543248,1766472638413,-105.83711822,0.00010628,2]
[399543250,1766472640445,-561.3120019,8.752e-05,2]
[399547231,1766473680438,230.69,9.99e-06,2]
[399547232,1766473680690,230.69,9.99e-06,2]
[399547233,1766473680972,230.69,9.99e-06,2]
[399547261,1766473838380,-2720.96378097,8.322e-05,2]
[399547262,1766473838429,-970.12688167,8.322e-05,2]
[399547295,1766473840556,-1308.90933736,8.322e-05,2]
[399547297,1766473840567,-165.15968632,8.407e-05,2]
[399547299,1766473840577,-270.71547824,8.577e-05,2]
[399547301,1766473840586,-150.0,9.833e-05,2]
[399547302,1766473840595,-180.87,0.0001,2]
[399547303,1766473840604,-590.11204373,0.00010122,2]
[399547304,1766473840615,-609.88795627,0.00010122,2]
[399547305,1766473840624,-300.0,0.00010197,2]
[399547306,1766473840633,-160.0,0.00010198,2]
[399547307,1766473840643,-1200.0,0.00010199,2]
[399547308,1766473840652,-255.6025681,0.00010199,2]
[399547309,1766473840662,-180.87,0.000102,2]
[399547310,1766473840671,-22643.47486301,0.000102,2]
[399547311,1766473840682,-394.56133503,0.000102,2]
[399547327,1766473843646,-5000.0,8.239e-05,2]
[399547328,1766473843656,-20181.18890579,0.000102,2]
[399547330,1766473846380,-1075.6164,0.000102,2]
[399547331,1766473846392,-1075.6164,0.000102,2]
[399548844,1766473995233,-3835.23,6.9e-05,2]
[399548845,1766473995260,-1164.77564813,7e-05,2]
[399548847,1766474066818,2855.119077,6.892e-05,2]
[399548848,1766474066840,2144.880923,6.892e-05,2]
[399548849,1766474090127,5000.0,6.892e-05,2]
[399548850,1766474105900,398.33717473,6.892e-05,2]
[399548851,1766474113658,2456.79190227,6.892e-05,2]
[399548852,1766474113682,2543.20809773,6.892e-05,2]
[399548853,1766474137276,5000.0,6.892e-05,2]
[399548854,1766474160859,5000.0,6.892e-05,2]
[399548855,1766474186079,3282.50839524,6.892e-05,2]
[399548856,1766474199133,-151.52,6.9e-05,2]
[399548858,1766474237844,3738.26,6.9e-05,2]
[399548859,1766474253376,5000.0,6.9e-05,2]
[399548860,1766474281888,958.71,6.9e-05,2]
[399548861,1766474281910,4041.29,6.9e-05,2]
[399548862,1766474303987,171.74,6.9e-05,2]
[399548863,1766474364114,3666.93,6.9e-05,2]
[399548864,1766474365018,2120.05,6.9e-05,2]
[399548865,1766474365044,2879.95,6.9e-05,2]
[399548866,1766474388759,1704.47427188,6.9e-05,2]
[399548867,1766474424561,241.64,6.9e-05,2]
[399548868,1766474483926,3598.43,6.9e-05,2]
[399548869,1766474543709,308.77,6.9e-05,2]
[399548870,1766474604367,1266.74572812,6.9e-05,2]
[399548871,1766474604390,2265.89427188,6.9e-05,2]
[399548872,1766474665145,373.25,6.9e-05,2]
[399548873,1766474723968,3469.45,6.9e-05,2]
[399548875,1766474783565,435.17,6.9e-05,2]
[399548876,1766474850188,3408.77,6.9e-05,2]
[399548878,1766474906644,47.47572812,6.9e-05,2]
[399548879,1766474906668,447.16427188,6.9e-05,2]
[399548880,1766474967992,3350.49,6.9e-05,2]
[399548881,1766474969136,-3350.49,7e-05,2]
[399548882,1766474969156,-161.8564926,7.013e-05,2]
[399548883,1766474969176,-520.0,7.05e-05,2]
[399548884,1766474969195,-1852.08902937,7.1e-05,2]
[399548885,1766475025329,655.8,6.9e-05,2]
[399548902,1766475032420,-655.8,7e-05,2]
[399548904,1766475032429,-655.8,7.1e-05,2]
[399548905,1766475032438,-655.8,7.2e-05,2]
[399548906,1766475032448,-37.2203728,7.299e-05,2]
[399548907,1766475032459,-895.7796272,7.299e-05,2]
[399548908,1766475032467,-655.8,7.3e-05,2]
[399548909,1766475032476,-300.0,7.399e-05,2]
[399548910,1766475032485,-655.8,7.4e-05,2]
[399548911,1766475032495,-655.8,7.5e-05,2]
[399548912,1766475032504,-655.8,7.6e-05,2]
[399548913,1766475032514,-655.8,7.7e-05,2]
[399548914,1766475032522,-655.8,7.8e-05,2]
[399548915,1766475032532,-655.8,7.9e-05,2]
[399548916,1766475032541,-655.8,8e-05,2]
[399548917,1766475032550,-655.8,8.1e-05,2]
[399548918,1766475032560,-420.0,8.139e-05,2]
[399548919,1766475032569,-655.8,8.2e-05,2]
[399548920,1766475032578,-655.8,8.4e-05,2]
[399548921,1766475032587,-176.33,8.448e-05,2]
[399548922,1766475032596,-655.8,8.5e-05,2]
[399548923,1766475032605,-655.8,8.6e-05,2]
[399548924,1766475032615,-500.0,8.849e-05,2]
[399548925,1766475032623,-500.0,8.849e-05,2]
[399548926,1766475032632,-464.60621854,8.849e-05,2]
[399548927,1766475032642,-303.49498504,8.849e-05,2]
[399548928,1766475032651,-380.83051142,8.849e-05,2]
[399548929,1766475032661,-178.92179767,8.85e-05,2]
[399548930,1766475032670,-278.88473216,8.85e-05,2]
[399548931,1766475032679,-352.66,8.85e-05,2]
[399548932,1766475032688,-979.17664597,8.851e-05,2]
[399548933,1766475032747,-655.8,8.7e-05,2]
[399548934,1766475032757,-49020.82335403,8.851e-05,2]
[399548935,1766475032766,-254.0,8.953e-05,2]
[399548936,1766475032776,-190.99066126,9.013e-05,2]
[399548937,1766475032784,-528.99,9.253e-05,2]
[399548938,1766475032794,-705.32,9.655e-05,2]
[399548939,1766475032803,-2112.19279131,0.0001,2]
[399548940,1766475032812,-8050.63843289,0.0001,2]
[399548941,1766475032821,-2914.96942801,0.0001,2]
[399548942,1766475032831,-881.65,0.00010057,2]
[399548943,1766475032840,-1057.98,0.0001046,2]
[399548944,1766475032849,-2260.53430158,0.00010622,2]
[399548945,1766475032858,-1234.31,0.00010862,2]
[399548946,1766475032868,-300.89858389,0.00010946,2]
[399548947,1766475032877,-220.12482993,0.00011013,2]
[399548948,1766475032886,-1410.64,0.00011264,2]
[399548949,1766475032895,-500.0,0.00011522,2]
[399548950,1766475032904,-300.14218038,0.00011523,2]
[399548951,1766475032914,-250.11848365,0.00011523,2]
[399548952,1766475032922,-359.81044585,0.00011523,2]
[399548953,1766475032931,-1586.97,0.00011666,2]
[399548954,1766475032940,-500.0,0.00011796,2]
[399548955,1766475032950,-1661.25760495,0.00011886,2]
[399548956,1766475032960,-9997.999999,0.00012,5]
[399548957,1766475032970,-13941.23650715,0.00012,2]
[399548958,1766475032982,-3918.304488,0.00012,2]
[399548959,1766475032993,-542.02577874,0.00012,2]
[399548979,1766475038629,-655.8,8.8e-05,2]
[399548980,1766475038639,-655.8,8.9e-05,2]
[399548981,1766475038657,-583.9067058,9e-05,2]
[399548982,1766475038679,-71.8932942,9e-05,2]
[399548983,1766475038691,-655.8,9.1e-05,2]
[399548984,1766475038701,-655.8,9.2e-05,2]
[399548985,1766475038710,-655.8,9.3e-05,2]
[399548986,1766475038720,-460.7067058,9.4e-05,2]
[399548987,1766475038732,-195.0932942,9.4e-05,2]
[399548988,1766475038741,-655.8,9.5e-05,2]
[399548989,1766475038751,-655.8,9.6e-05,2]
[399548990,1766475038761,-655.8,9.7e-05,2]
[399548991,1766475038771,-534.38816664,9.8e-05,2]
[399548992,1766475038816,-121.41183336,9.8e-05,2]
[399548993,1766475038825,-655.8,9.9e-05,2]
[399548994,1766475038834,-48.87636035,0.0001,2]
[399548995,1766475038844,-606.92363965,0.0001,2]
[399548996,1766475038854,-813.04512384,0.00012,2]
[399549009,1766475040788,-3e-08,0.000101,2]
[399549010,1766475040799,-655.79999997,0.000101,2]
[399549011,1766475040808,-332.57000003,0.000102,2]
[399549022,1766475043749,-323.22999997,0.000102,2]
[399549023,1766475043759,-655.8,0.000103,2]
[399549024,1766475043767,-655.8,0.000104,2]
[399549025,1766475043776,-512.4321648,0.000105,2]
[399549026,1766475043912,-143.3678352,0.000105,2]
[399549028,1766475043922,-655.8,0.000106,2]
[399549030,1766475043931,-655.8,0.000107,2]
[399549032,1766475043940,-655.8,0.000109,2]
[399549034,1766475043949,-655.8,0.00011,2]
[399549036,1766475043958,-655.8,0.000111,2]
[399549038,1766475043967,-655.8,0.000112,2]